Workbook

Sheet ★최종도체성적_홈페이지
A1: 제27회 전국한우능력평가대회 도체성적(지역순)
A2: 도축 번호 | B2: 시도 | C2: 시군 | D2: 출품자 | E2: 개체번호 | F2: 생체중 | G2: 도체중 | H2: 등심 단면적 | I2: 등지방 두께 | J2: 육량 지수 | K2: 근내 지방 | L2: 최종 등급 | M2: 훈격 | N2: 단가 | O2: 최종가격
A3: 218 | B3: 충북 | C3: 음성군 | D3: 홍창영 | E3: 002175030011 | F3: 1006 | G3: 620 | H3: 145 | I3: 10 | J3: 63.16 | K3: 93 | L3: 1++A | M3: 대 통 령 상 | N3: =VLOOKUP(E3,[1]경매자료!A:O,15,0) -> 150,000 | O3: =G3*N3 -> 93,000,000
A4: 68 | B4: 전남 | C4: 신안군 | D4: 이평관 | E4: 002171351742 | F4: 949 | G4: 636 | H4: 159 | I4: 9 | J4: 63.82 | K4: 93 | L4: 1++A | M4: 국 무 총 리 상 | N4: =VLOOKUP(E4,[1]경매자료!A:O,15,0) -> 60,000 | O4: =G4*N4 -> 38,160,000
A5: 193 | B5: 경남 | C5: 밀양시 | D5: 강동훈 | E5: 002173366634 | F5: 853 | G5: 507 | H5: 145 | I5: 8 | J5: 65.08 | K5: 93 | L5: 1++A | M5: 농림축산식품부장관상 | N5: =VLOOKUP(E5,[1]경매자료!A:O,15,0) -> 50,023 | O5: 25,361,661
A6: 167 | B6: 경기 | C6: 양주시 | D6: 김정윤1 | E6: 002173559192 | F6: 860 | G6: 538 | H6: 140 | I6: 7 | J6: 64.57 | K6: 93 | L6: 1++A | M6: 농촌진흥청장상 | N6: =VLOOKUP(E6,[1]경매자료!A:O,15,0) -> 40,549 | O6: 21,815,362
A7: 27 | B7: 경북 | C7: 경주시 | D7: 오흥석 | E7: 002174266726 | F7: 818 | G7: 523 | H7: 147 | I7: 5 | J7: 65.65 | K7: 93 | L7: 1++A | M7: 농협중앙회장상 | N7: =VLOOKUP(E7,[1]경매자료!A:O,15,0) -> 40,613 | O7: 21,240,599
A8: 90 | B8: 경남 | C8: 거창군 | D8: 이남권 | E8: 002173450772 | F8: 1031 | G8: 650 | H8: 160 | I8: 14 | J8: 62.75 | K8: 93 | L8: 1++A | M8: 축산물품질평가원장상 | N8: =VLOOKUP(E8,[1]경매자료!A:O,15,0) -> 36,849 | O8: 23,951,850
A9: 200 | B9: 경남 | C9: 하동군 | D9: 강윤주 | E9: 002176800701 | F9: 1015 | G9: 673 | H9: 168 | I9: 14 | J9: 62.88 | K9: 93 | L9: 1++A | M9: 한우자조금관리위원장상 | N9: =VLOOKUP(E9,[1]경매자료!A:O,15,0) -> 37,833 | O9: 25,461,609
A10: 88 | B10: 경남 | C10: 김해시 | D10: 박민규 | E10: 002173756956 | F10: 977 | G10: 600 | H10: 149 | I10: 10 | J10: 63.56 | K10: 93 | L10: 1++A | M10: 축산관련단체협의회장 | N10: =VLOOKUP(E10,[1]경매자료!A:O,15,0) -> 36,988 | O10: 22,192,800
A11: 130 | B11: 강원 | C11: 춘천시 | D11: 서육수 | E11: 002175122617 | F11: 914 | G11: 555 | H11: 151 | I11: 11 | J11: 63.99 | K11: 93 | L11: 1++A | M11: 충북농협중도매인조합장상 | N11: =VLOOKUP(E11,[1]경매자료!A:O,15,0) -> 38,955 | O11: 21,620,025
A12: 180 | B12: 울산 | C12: 울주군 | D12: 이규천 | E12: 002174576341 | F12: 926 | G12: 573 | H12: 137 | I12: 9 | J12: 63.51 | K12: 93 | L12: 1++A | M12: 전국한우협회장상 | N12: =VLOOKUP(E12,[1]경매자료!A:O,15,0) -> 36,988 | O12: 21,194,124
A13: 42 | B13: 전남 | C13: 영암군 | D13: 조형일 | E13: 002177990006 | F13: 819 | G13: 517 | H13: 146 | I13: 10 | J13: 64.49 | K13: 93 | L13: 1++A | M13: 한국종축개량협회장상 | N13: =VLOOKUP(E13,[1]경매자료!A:O,15,0) -> 33,999 | O13: 17,577,483
A14: 133 | B14: 경남 | C14: 합천군 | D14: 합천축협 | E14: 002171230404 | F14: 855 | G14: 534 | H14: 142 | I14: 13 | J14: 63.32 | K14: 93 | L14: 1++A | M14: 대회추진협의회장상 | N14: =VLOOKUP(E14,[1]경매자료!A:O,15,0) -> 31,899 | O14: 17,034,066
A15: 171 | B15: 경기 | C15: 가평군 | D15: 강현칠 | E15: 002174908017 | F15: 789 | G15: 489 | H15: 105 | I15: 17 | J15: 60.76 | K15: 93 | L15: 1++B | N15: =VLOOKUP(E15,[1]경매자료!A:O,15,0) -> 24,459 | O15: 11,960,451
A16: 169 | B16: 경기 | C16: 가평군 | D16: 김범찬 | E16: 002171699230 | F16: 850 | G16: 489 | H16: 113 | I16: 10 | J16: 63.02 | K16: 65 | L16: 1+A | N16: =VLOOKUP(E16,[1]경매자료!A:O,15,0) -> 18,669 | O16: 9,129,141
A17: 142 | B17: 경기 | C17: 가평군 | D17: 김유화 | E17: 002171701536 | F17: 821 | G17: 503 | H17: 109 | I17: 14 | J17: 61.62 | K17: 82 | L17: 1++B | N17: =VLOOKUP(E17,[1]경매자료!A:O,15,0) -> 19,050 | O17: 9,582,150
A18: 145 | B18: 경기 | C18: 가평군 | D18: 김진천 | E18: 002165741903 | F18: 850 | G18: 468 | H18: 121 | I18: 8 | J18: 64.32 | K18: 52 | L18: 1A | N18: =VLOOKUP(E18,[1]경매자료!A:O,15,0) -> 17,879 | O18: 8,367,372
A19: 144 | B19: 경기 | C19: 가평군 | D19: 이대훈 | E19: 002171601324 | F19: 816 | G19: 505 | H19: 121 | I19: 22 | J19: 60.29 | K19: 65 | L19: 1+C | N19: =VLOOKUP(E19,[1]경매자료!A:O,15,0) -> 17,812 | O19: 8,995,060
A20: 140 | B20: 경기 | C20: 가평군 | D20: 정웅진 | E20: 002169866226 | F20: 857 | G20: 509 | H20: 121 | I20: 12 | J20: 62.73 | K20: 64 | L20: 1+A | N20: =VLOOKUP(E20,[1]경매자료!A:O,15,0) -> 18,579 | O20: 9,456,711
A21: 141 | B21: 경기 | C21: 가평군 | D21: 정원진 | E21: 002169865713 | F21: 899 | G21: 561 | H21: 117 | I21: 12 | J21: 61.97 | K21: 71 | L21: 1++B | N21: =VLOOKUP(E21,[1]경매자료!A:O,15,0) -> 18,799 | O21: 10,546,239
A22: 170 | B22: 경기 | C22: 가평군 | D22: 한제국 | E22: 002174909036 | F22: 873 | G22: 550 | H22: 106 | I22: 11 | J22: 61.74 | K22: 72 | L22: 1++B | N22: =VLOOKUP(E22,[1]경매자료!A:O,15,0) -> 18,789 | O22: 10,333,950
A23: 143 | B23: 경기 | C23: 가평군 | D23: 현정호 | E23: 002174219309 | F23: 846 | G23: 512 | H23: 126 | I23: 16 | J23: 61.99 | K23: 93 | L23: 1++B | N23: =VLOOKUP(E23,[1]경매자료!A:O,15,0) -> 25,495 | O23: 13,053,440
A24: 80 | B24: 경기 | C24: 동두천시 | D24: 이은석 | E24: 002173564890 | F24: 778 | G24: 454 | H24: 96 | I24: 10 | J24: 62.44 | K24: 92 | L24: 1++B | N24: =VLOOKUP(E24,[1]경매자료!A:O,15,0) -> 23,899 | O24: 10,850,146
A25: 16 | B25: 경기 | C25: 안산시 | D25: 이준희 | E25: 002169005718 | F25: 896 | G25: 534 | H25: 98 | I25: 10 | J25: 61.7 | K25: 51 | L25: 1B | N25: =VLOOKUP(E25,[1]경매자료!A:O,15,0) -> 16,969 | O25: 9,061,446
A26: 252 | B26: 경기 | C26: 안성시 | D26: 곽민준 | E26: 002171953938 | F26: 883 | G26: 547 | H26: 130 | I26: 12 | J26: 62.78 | K26: 93 | L26: 1++A | N26: =VLOOKUP(E26,[1]경매자료!A:O,15,0) -> 25,279 | O26: 13,827,613
A27: 244 | B27: 경기 | C27: 안성시 | D27: 박상승 | E27: 002165244241 | F27: 737 | G27: 435 | H27: 94 | I27: 10 | J27: 62.56 | K27: 93 | L27: 1++A | N27: =VLOOKUP(E27,[1]경매자료!A:O,15,0) -> 25,601 | O27: 11,136,435
A28: 236 | B28: 경기 | C28: 안성시 | D28: 우택균 | E28: 002173836697 | F28: 920 | G28: 567 | H28: 109 | I28: 14 | J28: 61.08 | K28: 43 | L28: 1B | N28: =VLOOKUP(E28,[1]경매자료!A:O,15,0) -> 17,000 | O28: 9,639,000
A29: 232 | B29: 경기 | C29: 안성시 | D29: 최춘호 | E29: 002173836953 | F29: 942 | G29: 593 | H29: 106 | I29: 11 | J29: 61.38 | K29: 91 | L29: 1++B | N29: =VLOOKUP(E29,[1]경매자료!A:O,15,0) -> 23,493 | O29: 13,931,349
A30: 233 | B30: 경기 | C30: 안성시 | D30: 홍길선 | E30: 002174863788 | F30: 901 | G30: 547 | H30: 132 | I30: 11 | J30: 63.11 | K30: 72 | L30: 1++A | N30: =VLOOKUP(E30,[1]경매자료!A:O,15,0) -> 17,865 | O30: 9,772,155
A31: 168 | B31: 경기 | C31: 양주시 | D31: 송근홍 | E31: 002175538628 | F31: 931 | G31: 545 | H31: 132 | I31: 12 | J31: 62.9 | K31: 83 | L31: 1++A | N31: =VLOOKUP(E31,[1]경매자료!A:O,15,0) -> 19,419 | O31: 10,583,355
A32: 194 | B32: 경기 | C32: 양평군 | D32: 김창섭 | E32: 002175930631 | F32: 776 | G32: 488 | H32: 97 | I32: 11 | J32: 61.85 | K32: 43 | L32: 1B | N32: =VLOOKUP(E32,[1]경매자료!A:O,15,0) -> 17,139 | O32: 8,363,832
A33: 225 | B33: 경기 | C33: 양평군 | D33: 남승우 | E33: 002173843647 | F33: 788 | G33: 462 | H33: 100 | I33: 10 | J33: 62.59 | K33: 83 | L33: 1++A | N33: =VLOOKUP(E33,[1]경매자료!A:O,15,0) -> 19,499 | O33: 9,008,538
A34: 206 | B34: 경기 | C34: 양평군 | D34: 류재원 | E34: 002173844422 | F34: 849 | G34: 538 | H34: 96 | I34: 12 | J34: 61.09 | K34: 63 | L34: 1+B | N34: =VLOOKUP(E34,[1]경매자료!A:O,15,0) -> 17,559 | O34: 9,446,742
A35: 195 | B35: 경기 | C35: 양평군 | D35: 민영주 | E35: 002177326400 | F35: 723 | G35: 424 | H35: 93 | I35: 10 | J35: 62.64 | K35: 61 | L35: 1+A | N35: =VLOOKUP(E35,[1]경매자료!A:O,15,0) -> 17,998 | O35: 7,631,152
A36: 196 | B36: 경기 | C36: 양평군 | D36: 박재덕 | E36: 002175380033 | F36: 848 | G36: 512 | H36: 113 | I36: 13 | J36: 62 | K36: 83 | L36: 1++B | N36: =VLOOKUP(E36,[1]경매자료!A:O,15,0) -> 18,820 | O36: 9,635,840
A37: 227 | B37: 경기 | C37: 양평군 | D37: 신흥진 | E37: 002175928892 | F37: 894 | G37: 538 | H37: 119 | I37: 11 | J37: 62.53 | K37: 92 | L37: 1++A | N37: =VLOOKUP(E37,[1]경매자료!A:O,15,0) -> 24,366 | O37: 13,108,908
A38: 205 | B38: 경기 | C38: 양평군 | D38: 윤제길 | E38: 002173844705 | F38: 750 | G38: 456 | H38: 94 | I38: 9 | J38: 62.56 | K38: 65 | L38: 1+A | N38: =VLOOKUP(E38,[1]경매자료!A:O,15,0) -> 18,399 | O38: 8,389,944
A39: 228 | B39: 경기 | C39: 양평군 | D39: 임성훈 | E39: 002175381817 | F39: 1038 | G39: 633 | H39: 143 | I39: 11 | J39: 62.74 | K39: 91 | L39: 1++A | N39: =VLOOKUP(E39,[1]경매자료!A:O,15,0) -> 23,115 | O39: 14,631,795
A40: 226 | B40: 경기 | C40: 양평군 | D40: 황기동 | E40: 002173845435 | F40: 853 | G40: 522 | H40: 129 | I40: 12 | J40: 63.01 | K40: 82 | L40: 1++A | N40: =VLOOKUP(E40,[1]경매자료!A:O,15,0) -> 19,236 | O40: 10,041,192
A41: 220 | B41: 경기 | C41: 이천시 | D41: 공준식 | E41: 002171518161 | F41: 854 | G41: 519 | H41: 112 | I41: 9 | J41: 62.84 | K41: 81 | L41: 1++A | N41: =VLOOKUP(E41,[1]경매자료!A:O,15,0) -> 19,910 | O41: 10,333,290
A42: 234 | B42: 경기 | C42: 이천시 | D42: 임관빈 | E42: 002174766318 | F42: 842 | G42: 517 | H42: 128 | I42: 13 | J42: 62.77 | K42: 93 | L42: 1++A | N42: =VLOOKUP(E42,[1]경매자료!A:O,15,0) -> 25,278 | O42: 13,068,726
A43: 219 | B43: 경기 | C43: 이천시 | D43: 정상현 | E43: 002174770276 | F43: 916 | G43: 529 | H43: 117 | I43: 14 | J43: 61.81 | K43: 93 | L43: 1++B | N43: =VLOOKUP(E43,[1]경매자료!A:O,15,0) -> 23,749 | O43: 12,563,221
A44: 151 | B44: 경기 | C44: 파주시 | D44: 김영민 | E44: 002177074478 | F44: 845 | G44: 518 | H44: 132 | I44: 10 | J44: 63.71 | K44: 93 | L44: 1++A | N44: =VLOOKUP(E44,[1]경매자료!A:O,15,0) -> 25,899 | O44: 13,415,682
A45: 241 | B45: 경기 | C45: 평택시 | D45: 오학영 | E45: 002175330382 | F45: 838 | G45: 521 | H45: 109 | I45: 10 | J45: 62.42 | K45: 91 | L45: 1++B | N45: =VLOOKUP(E45,[1]경매자료!A:O,15,0) -> 22,800 | O45: 11,878,800
A46: 242 | B46: 경기 | C46: 평택시 | D46: 이강문 | E46: 002177486050 | F46: 718 | G46: 414 | H46: 84 | I46: 9 | J46: 62.47 | K46: 62 | L46: 1+B | N46: =VLOOKUP(E46,[1]경매자료!A:O,15,0) -> 17,199 | O46: 7,120,386
A47: 238 | B47: 경기 | C47: 평택시 | D47: 이구영 | E47: 002172446680 | F47: 908 | G47: 554 | H47: 96 | I47: 12 | J47: 60.97 | K47: 83 | L47: 1++B | N47: =VLOOKUP(E47,[1]경매자료!A:O,15,0) -> 18,699 | O47: 10,359,246
A48: 239 | B48: 경기 | C48: 평택시 | D48: 전성중 | E48: 002175330124 | F48: 944 | G48: 592 | H48: 113 | I48: 14 | J48: 61.09 | K48: 92 | L48: 1++B | N48: =VLOOKUP(E48,[1]경매자료!A:O,15,0) -> 23,999 | O48: 14,207,408
A49: 243 | B49: 경기 | C49: 평택시 | D49: 조학구 | E49: 002176105879 | F49: 863 | G49: 532 | H49: 106 | I49: 8 | J49: 62.61 | K49: 91 | L49: 1++A | N49: =VLOOKUP(E49,[1]경매자료!A:O,15,0) -> 24,577 | O49: 13,074,964
A50: 240 | B50: 경기 | C50: 평택시 | D50: 허도회 | E50: 002173655851 | F50: 889 | G50: 557 | H50: 120 | I50: 9 | J50: 62.84 | K50: 92 | L50: 1++A | N50: =VLOOKUP(E50,[1]경매자료!A:O,15,0) -> 24,900 | O50: 13,869,300
A51: 146 | B51: 경기 | C51: 포천시 | D51: 김영석1 | E51: 002176155121 | F51: 906 | G51: 584 | H51: 145 | I51: 18 | J51: 61.84 | K51: 92 | L51: 1++B | N51: =VLOOKUP(E51,[1]경매자료!A:O,15,0) -> 23,999 | O51: 14,015,416
A52: 149 | B52: 경기 | C52: 포천시 | D52: 박봉선 | E52: 002176157828 | F52: 820 | G52: 480 | H52: 111 | I52: 13 | J52: 62.23 | K52: 52 | L52: 1B | N52: =VLOOKUP(E52,[1]경매자료!A:O,15,0) -> 17,003 | O52: 8,161,440
A53: 147 | B53: 경기 | C53: 포천시 | D53: 신연순 | E53: 002176158988 | F53: 803 | G53: 482 | H53: 121 | I53: 11 | J53: 63.32 | K53: 62 | L53: 1+A | N53: =VLOOKUP(E53,[1]경매자료!A:O,15,0) -> 18,499 | O53: 8,916,518
A54: 150 | B54: 경기 | C54: 포천시 | D54: 이기갑 | E54: 002169609136 | F54: 823 | G54: 497 | H54: 118 | I54: 12 | J54: 62.7 | K54: 43 | L54: 1A | N54: =VLOOKUP(E54,[1]경매자료!A:O,15,0) -> 17,929 | O54: 8,910,713
A55: 148 | B55: 경기 | C55: 포천시 | D55: 정낙용 | E55: 002176155148 | F55: 842 | G55: 507 | H55: 110 | I55: 19 | J55: 60.41 | K55: 52 | L55: 1B | N55: =VLOOKUP(E55,[1]경매자료!A:O,15,0) -> 17,005 | O55: 8,621,535
A56: 253 | B56: 경기 | C56: 화성시 | D56: 강창섭 | E56: 002175512330 | F56: 913 | G56: 528 | H56: 106 | I56: 6 | J56: 63.13 | K56: 93 | L56: 1++A | N56: =VLOOKUP(E56,[1]경매자료!A:O,15,0) -> 24,279 | O56: 12,819,312
A57: 235 | B57: 경기 | C57: 화성시 | D57: 박광순 | E57: 002174523096 | F57: 1097 | G57: 671 | H57: 131 | I57: 7 | J57: 62.64 | K57: 91 | L57: 1++A | N57: =VLOOKUP(E57,[1]경매자료!A:O,15,0) -> 23,903 | O57: 16,038,913
A58: 139 | B58: 강원 | C58: 고성군 | D58: 장정권 | E58: 002175206642 | F58: 899 | G58: 533 | H58: 118 | I58: 15 | J58: 61.59 | K58: 82 | L58: 1++B | N58: =VLOOKUP(E58,[1]경매자료!A:O,15,0) -> 19,458 | O58: 10,371,114
A59: 188 | B59: 강원 | C59: 속초시 | D59: 이창우 | E59: 002174514700 | F59: 918 | G59: 560 | H59: 140 | I59: 15 | J59: 62.47 | K59: 92 | L59: 1++B | N59: =VLOOKUP(E59,[1]경매자료!A:O,15,0) -> 23,118 | O59: 12,946,080
A60: 187 | B60: 강원 | C60: 양양군 | D60: 김홍열 | E60: 002174513080 | F60: 1002 | G60: 611 | H60: 127 | I60: 13 | J60: 61.8 | K60: 92 | L60: 1++B | N60: =VLOOKUP(E60,[1]경매자료!A:O,15,0) -> 23,909 | O60: 14,608,399
A61: 185 | B61: 강원 | C61: 양양군 | D61: 박주욱 | E61: 002174513846 | F61: 700 | G61: 427 | H61: 113 | I61: 15 | J61: 62.46 | K61: 92 | L61: 1++B | N61: =VLOOKUP(E61,[1]경매자료!A:O,15,0) -> 26,812 | O61: 11,448,724
A62: 186 | B62: 강원 | C62: 양양군 | D62: 최양순 | E62: 002174515411 | F62: 866 | G62: 534 | H62: 114 | I62: 12 | J62: 62.08 | K62: 92 | L62: 1++B | N62: =VLOOKUP(E62,[1]경매자료!A:O,15,0) -> 23,089 | O62: 12,329,526
A63: 189 | B63: 강원 | C63: 영월군 | D63: 엄복섭 | E63: 002172277566 | F63: 838 | G63: 513 | H63: 118 | I63: 10 | J63: 63 | K63: 93 | L63: 1++A | N63: =VLOOKUP(E63,[1]경매자료!A:O,15,0) -> 25,899 | O63: 13,286,187
A64: 190 | B64: 강원 | C64: 영월군 | D64: 유화균 | E64: 002172279326 | F64: 834 | G64: 502 | H64: 108 | I64: 12 | J64: 62.08 | K64: 72 | L64: 1++B | N64: =VLOOKUP(E64,[1]경매자료!A:O,15,0) -> 18,900 | O64: 9,487,800
A65: 191 | B65: 강원 | C65: 영월군 | D65: 허대석 | E65: 002172278760 | F65: 894 | G65: 528 | H65: 112 | I65: 9 | J65: 62.74 | K65: 81 | L65: 1++A | N65: =VLOOKUP(E65,[1]경매자료!A:O,15,0) -> 18,778 | O65: 9,914,784
A66: 264 | B66: 강원 | C66: 원주시 | D66: 김흥수 | E66: 002176752718 | F66: 856 | G66: 527 | H66: 110 | I66: 9 | J66: 62.64 | K66: 83 | L66: 1++A | N66: =VLOOKUP(E66,[1]경매자료!A:O,15,0) -> 20,401 | O66: 10,751,327
A67: 265 | B67: 강원 | C67: 원주시 | D67: 원종현 | E67: 002171649595 | F67: 862 | G67: 506 | H67: 97 | I67: 16 | J67: 60.43 | K67: 93 | L67: 1++B | N67: =VLOOKUP(E67,[1]경매자료!A:O,15,0) -> 23,358 | O67: 11,819,148
A68: 263 | B68: 강원 | C68: 원주시 | D68: 이희규 | E68: 002171652806 | F68: 904 | G68: 533 | H68: 122 | I68: 9 | J68: 63.21 | K68: 81 | L68: 1++A | N68: =VLOOKUP(E68,[1]경매자료!A:O,15,0) -> 20,199 | O68: =G68*N68 -> 10,766,067
A69: 18 | B69: 강원 | C69: 정선군 | D69: 송일호 | E69: 002174700133 | F69: 825 | G69: 480 | H69: 114 | I69: 8 | J69: 63.71 | K69: 64 | L69: 1+A | N69: =VLOOKUP(E69,[1]경매자료!A:O,15,0) -> 18,634 | O69: 8,944,320
A70: 17 | B70: 강원 | C70: 정선군 | D70: 전장용 | E70: 002174892241 | F70: 898 | G70: 560 | H70: 98 | I70: 14 | J70: 60.57 | K70: 64 | L70: 1+B | N70: =VLOOKUP(E70,[1]경매자료!A:O,15,0) -> 17,255 | O70: 9,662,800
A71: 79 | B71: 강원 | C71: 철원군 | D71: 김병옥 | E71: 002175251908 | F71: 820 | G71: 539 | H71: 113 | I71: 23 | J71: 59.42 | K71: 93 | L71: 1++C | N71: =VLOOKUP(E71,[1]경매자료!A:O,15,0) -> 22,999 | O71: 12,396,461
A72: 78 | B72: 강원 | C72: 철원군 | D72: 허진행 | E72: 002175254336 | F72: 1041 | G72: 628 | H72: 125 | I72: 13 | J72: 61.58 | K72: 91 | L72: 1++B | N72: =VLOOKUP(E72,[1]경매자료!A:O,15,0) -> 23,888 | O72: 15,001,664
A73: 174 | B73: 강원 | C73: 춘천시 | D73: 김봉림 | E73: 002175121614 | F73: 830 | G73: 507 | H73: 131 | I73: 6 | J73: 64.79 | K73: 93 | L73: 1++A | N73: =VLOOKUP(E73,[1]경매자료!A:O,15,0) -> 28,223 | O73: 14,309,061
A74: 129 | B74: 강원 | C74: 춘천시 | D74: 남궁관 | E74: 002176072129 | F74: 843 | G74: 518 | H74: 110 | I74: 13 | J74: 61.78 | K74: 64 | L74: 1+B | N74: =VLOOKUP(E74,[1]경매자료!A:O,15,0) -> 17,699 | O74: 9,168,082
A75: 131 | B75: 강원 | C75: 춘천시 | D75: 신길선 | E75: 002175124569 | F75: 775 | G75: 468 | H75: 110 | I75: 10 | J75: 63.12 | K75: 92 | L75: 1++A | N75: =VLOOKUP(E75,[1]경매자료!A:O,15,0) -> 25,862 | O75: 12,103,416
A76: 173 | B76: 강원 | C76: 춘천시 | D76: 우문수 | E76: 002177434135 | F76: 1001 | G76: 626 | H76: 130 | I76: 7 | J76: 63.02 | K76: 91 | L76: 1++A | N76: =VLOOKUP(E76,[1]경매자료!A:O,15,0) -> 23,120 | O76: 14,473,120
A77: 172 | B77: 강원 | C77: 춘천시 | D77: 이재황 | E77: 002175124690 | F77: 789 | G77: 486 | H77: 123 | I77: 14 | J77: 62.61 | K77: 93 | L77: 1++A | N77: =VLOOKUP(E77,[1]경매자료!A:O,15,0) -> 24,799 | O77: 12,052,314
A78: 132 | B78: 강원 | C78: 춘천시 | D78: 장백호 | E78: 002176059033 | F78: 876 | G78: 522 | H78: 118 | I78: 13 | J78: 62.17 | K78: 65 | L78: 1+B | N78: =VLOOKUP(E78,[1]경매자료!A:O,15,0) -> 17,799 | O78: 9,291,078
A79: 175 | B79: 강원 | C79: 춘천시 | D79: 조수한 | E79: 002175123120 | F79: 923 | G79: 586 | H79: 131 | I79: 12 | J79: 62.43 | K79: 93 | L79: 1++B | N79: =VLOOKUP(E79,[1]경매자료!A:O,15,0) -> 26,439 | O79: 15,493,254
A80: 19 | B80: 강원 | C80: 평창군 | D80: 평창영월정선축협 | E80: 002176092252 | F80: 768 | G80: 477 | H80: 127 | I80: 11 | J80: 63.74 | K80: 83 | L80: 1++A | N80: =VLOOKUP(E80,[1]경매자료!A:O,15,0) -> 20,829 | O80: 9,935,433
A81: 208 | B81: 강원 | C81: 홍천군 | D81: 김영진 | E81: 002178591549 | F81: 831 | G81: 493 | H81: 117 | I81: 11 | J81: 62.94 | K81: 93 | L81: 1++A | N81: =VLOOKUP(E81,[1]경매자료!A:O,15,0) -> 26,879 | O81: 13,251,347
A82: 217 | B82: 강원 | C82: 홍천군 | D82: 박시덕 | E82: 002175667966 | F82: 975 | G82: 604 | H82: 127 | I82: 13 | J82: 61.86 | K82: 91 | L82: 1++B | N82: =VLOOKUP(E82,[1]경매자료!A:O,15,0) -> 22,888 | O82: 13,824,352
A83: 209 | B83: 강원 | C83: 홍천군 | D83: 박용길 | E83: 002175667020 | F83: 774 | G83: 476 | H83: 107 | I83: 11 | J83: 62.57 | K83: 91 | L83: 1++A | N83: =VLOOKUP(E83,[1]경매자료!A:O,15,0) -> 23,333 | O83: 11,106,508
A84: 210 | B84: 강원 | C84: 홍천군 | D84: 박재학 | E84: 002175667095 | F84: 889 | G84: 514 | H84: 116 | I84: 11 | J84: 62.64 | K84: 92 | L84: 1++A | N84: =VLOOKUP(E84,[1]경매자료!A:O,15,0) -> 22,799 | O84: 11,718,686
A85: 216 | B85: 강원 | C85: 홍천군 | D85: 박진근 | E85: 002175674522 | F85: 858 | G85: 522 | H85: 129 | I85: 7 | J85: 64.21 | K85: 93 | L85: 1++A | N85: =VLOOKUP(E85,[1]경매자료!A:O,15,0) -> 25,822 | O85: 13,479,084
A86: 211 | B86: 강원 | C86: 홍천군 | D86: 사동진 | E86: 002177106866 | F86: 813 | G86: 483 | H86: 96 | I86: 11 | J86: 61.84 | K86: 83 | L86: 1++B | N86: =VLOOKUP(E86,[1]경매자료!A:O,15,0) -> 18,610 | O86: 8,988,630
A87: 215 | B87: 강원 | C87: 홍천군 | D87: 이진영 | E87: 002173017686 | F87: 833 | G87: 531 | H87: 126 | I87: 18 | J87: 61.33 | K87: 93 | L87: 1++B | N87: =VLOOKUP(E87,[1]경매자료!A:O,15,0) -> 25,999 | O87: 13,805,469
A88: 214 | B88: 강원 | C88: 홍천군 | D88: 임홍원 | E88: 002177111575 | F88: 812 | G88: 484 | H88: 117 | I88: 10 | J88: 63.32 | K88: 81 | L88: 1++A | N88: =VLOOKUP(E88,[1]경매자료!A:O,15,0) -> 20,479 | O88: 9,911,836
A89: 213 | B89: 강원 | C89: 홍천군 | D89: 조남웅 | E89: 002175306228 | F89: 891 | G89: 571 | H89: 89 | I89: 26 | J89: 57.43 | K89: 61 | L89: 1+C | N89: =VLOOKUP(E89,[1]경매자료!A:O,15,0) -> 14,851 | O89: 8,479,921
A90: 212 | B90: 강원 | C90: 홍천군 | D90: 홍천축협 | E90: 002175666813 | F90: 769 | G90: 467 | H90: 117 | I90: 11 | J90: 63.29 | K90: 91 | L90: 1++A | N90: =VLOOKUP(E90,[1]경매자료!A:O,15,0) -> 23,999 | O90: 11,207,533
A91: 128 | B91: 강원 | C91: 화천군 | D91: 서민수 | E91: 002175115865 | F91: 876 | G91: 544 | H91: 138 | I91: 15 | J91: 62.54 | K91: 71 | L91: 1++A | N91: =VLOOKUP(E91,[1]경매자료!A:O,15,0) -> 19,204 | O91: 10,446,976
A92: 6 | B92: 강원 | C92: 횡성군 | D92: 김용래 | E92: 002176432851 | F92: 787 | G92: 470 | H92: 82 | I92: 12 | J92: 60.87 | K92: 65 | L92: 1+B | N92: =VLOOKUP(E92,[1]경매자료!A:O,15,0) -> 17,359 | O92: 8,158,730
A93: 5 | B93: 강원 | C93: 횡성군 | D93: 최철희 | E93: 002176429052 | F93: 892 | G93: 563 | H93: 103 | I93: 13 | J93: 61.03 | K93: 64 | L93: 1+B | N93: =VLOOKUP(E93,[1]경매자료!A:O,15,0) -> 17,555 | O93: 9,883,465
A94: 4 | B94: 강원 | C94: 횡성군 | D94: 한봉희 | E94: 002174754298 | F94: 948 | G94: 566 | H94: 115 | I94: 7 | J94: 62.93 | K94: 91 | L94: 1++A | N94: =VLOOKUP(E94,[1]경매자료!A:O,15,0) -> 25,699 | O94: 14,545,634
A95: 3 | B95: 강원 | C95: 횡성군 | D95: 횡성축협 | E95: 002174755508 | F95: 859 | G95: 503 | H95: 113 | I95: 15 | J95: 61.6 | K95: 82 | L95: 1++B | N95: =VLOOKUP(E95,[1]경매자료!A:O,15,0) -> 18,800 | O95: 9,456,400
A96: 256 | B96: 충북 | C96: 괴산군 | D96: 김용권 | E96: 002176875884 | F96: 693 | G96: 412 | H96: 96 | I96: 11 | J96: 62.71 | K96: 51 | L96: 1A | N96: =VLOOKUP(E96,[1]경매자료!A:O,15,0) -> 17,429 | O96: 7,180,748
A97: 257 | B97: 충북 | C97: 괴산군 | D97: 김홍기 | E97: 002176876238 | F97: 787 | G97: 471 | H97: 107 | I97: 5 | J97: 64.22 | K97: 81 | L97: 1++A | N97: =VLOOKUP(E97,[1]경매자료!A:O,15,0) -> 19,857 | O97: 9,352,647
A98: 254 | B98: 충북 | C98: 괴산군 | D98: 지윤광 | E98: 002173310591 | F98: 888 | G98: 542 | H98: 106 | I98: 26 | J98: 58.35 | K98: 81 | L98: 1++C | N98: =VLOOKUP(E98,[1]경매자료!A:O,15,0) -> 18,258 | O98: 9,895,836
A99: 138 | B99: 충북 | C99: 보은군 | D99: 김애순 | E99: 002179505878 | F99: 984 | G99: 578 | H99: 127 | I99: 12 | J99: 62.31 | K99: 64 | L99: 1+B | N99: =VLOOKUP(E99,[1]경매자료!A:O,15,0) -> 17,334 | O99: 10,019,052
A100: 197 | B100: 충북 | C100: 옥천군 | D100: 민경열 | E100: 002175359690 | F100: 835 | G100: 502 | H100: 97 | I100: 10 | J100: 61.95 | K100: 65 | L100: 1+B | N100: =VLOOKUP(E100,[1]경매자료!A:O,15,0) -> 17,451 | O100: 8,760,402
A101: 255 | B101: 충북 | C101: 증평군 | D101: 한정만 | E101: 002177619129 | F101: 826 | G101: 494 | H101: 102 | I101: 13 | J101: 61.56 | K101: 65 | L101: 1+B | N101: =VLOOKUP(E101,[1]경매자료!A:O,15,0) -> 17,710 | O101: 8,748,740
A102: 245 | B102: 충남 | C102: 공주시 | D102: 유기남 | E102: 002175887436 | F102: 877 | G102: 553 | H102: 117 | I102: 9 | J102: 62.73 | K102: 91 | L102: 1++A | N102: =VLOOKUP(E102,[1]경매자료!A:O,15,0) -> 23,456 | O102: 12,971,168
A103: 247 | B103: 충남 | C103: 공주시 | D103: 유봉기 | E103: 002175892482 | F103: 957 | G103: 603 | H103: 128 | I103: 10 | J103: 62.54 | K103: 92 | L103: 1++A | N103: =VLOOKUP(E103,[1]경매자료!A:O,15,0) -> 25,988 | O103: 15,670,764
A104: 246 | B104: 충남 | C104: 공주시 | D104: 윤용국 | E104: 002177202464 | F104: 854 | G104: 514 | H104: 102 | I104: 9 | J104: 62.35 | K104: 64 | L104: 1+B | N104: =VLOOKUP(E104,[1]경매자료!A:O,15,0) -> 17,740 | O104: 9,118,360
A105: 248 | B105: 충남 | C105: 공주시 | D105: 편용범 | E105: 002178328596 | F105: 779 | G105: 465 | H105: 118 | I105: 11 | J105: 63.37 | K105: 93 | L105: 1++A | N105: =VLOOKUP(E105,[1]경매자료!A:O,15,0) -> 24,579 | O105: 11,429,235
A106: 199 | B106: 충남 | C106: 보령시 | D106: 유병란 | E106: 002176230231 | F106: 775 | G106: 467 | H106: 117 | I106: 12 | J106: 63.02 | K106: 92 | L106: 1++A | N106: =VLOOKUP(E106,[1]경매자료!A:O,15,0) -> 23,005 | O106: 10,743,335
A107: 60 | B107: 충남 | C107: 부여군 | D107: 김정숙 | E107: 002170335158 | F107: 840 | G107: 547 | H107: 117 | I107: 6 | J107: 63.48 | K107: 93 | L107: 1++A | N107: =VLOOKUP(E107,[1]경매자료!A:O,15,0) -> 26,369 | O107: 14,423,843
A108: 61 | B108: 충남 | C108: 부여군 | D108: 백덕환 | E108: 002176586753 | F108: 747 | G108: 438 | H108: 103 | I108: 9 | J108: 63.38 | K108: 83 | L108: 1++A | N108: =VLOOKUP(E108,[1]경매자료!A:O,15,0) -> 20,969 | O108: 9,184,422
A109: 198 | B109: 대전 | C109: 서구 | D109: 권남하 | E109: 002176919282 | F109: 929 | G109: 550 | H109: 123 | I109: 10 | J109: 62.84 | K109: 91 | L109: 1++A | N109: =VLOOKUP(E109,[1]경매자료!A:O,15,0) -> 23,988 | O109: 13,193,400
A110: 108 | B110: 충남 | C110: 서산시 | D110: 오세광 | E110: 002173808590 | F110: 952 | G110: 580 | H110: 107 | I110: 10 | J110: 61.75 | K110: 72 | L110: 1++B | N110: =VLOOKUP(E110,[1]경매자료!A:O,15,0) -> 19,060 | O110: 11,054,800
A111: 109 | B111: 충남 | C111: 서산시 | D111: 충남한우협동조합 | E111: 002176271947 | F111: 768 | G111: 452 | H111: 95 | I111: 10 | J111: 62.4 | K111: 52 | L111: 1B | N111: =VLOOKUP(E111,[1]경매자료!A:O,15,0) -> 16,999 | O111: 7,683,548
A112: 259 | B112: 충남 | C112: 서천군 | D112: 신재호 | E112: 002175505488 | F112: 1119 | G112: 687 | H112: 131 | I112: 14 | J112: 61.23 | K112: 93 | L112: 1++B | N112: =VLOOKUP(E112,[1]경매자료!A:O,15,0) -> 21,265 | O112: 14,609,055
A113: 262 | B113: 충남 | C113: 서천군 | D113: 이승덕 | E113: 002175863479 | F113: 1044 | G113: 620 | H113: 110 | I113: 9 | J113: 61.76 | K113: 83 | L113: 1++B | N113: =VLOOKUP(E113,[1]경매자료!A:O,15,0) -> 18,919 | O113: 11,729,780
A114: 261 | B114: 충남 | C114: 서천군 | D114: 장건용 | E114: 002169700863 | F114: 827 | G114: 497 | H114: 107 | I114: 12 | J114: 62.07 | K114: 92 | L114: 1++B | N114: =VLOOKUP(E114,[1]경매자료!A:O,15,0) -> 23,558 | O114: 11,708,326
A115: 260 | B115: 충남 | C115: 예산군 | D115: 김원균 | E115: 002174848938 | F115: 938 | G115: 586 | H115: 114 | I115: 7 | J115: 62.67 | K115: 83 | L115: 1++A | N115: =VLOOKUP(E115,[1]경매자료!A:O,15,0) -> 19,852 | O115: 11,633,272
A116: 100 | B116: 충남 | C116: 예산군 | D116: 남상규 | E116: 002178430692 | F116: 959 | G116: 544 | H116: 107 | I116: 14 | J116: 61.15 | K116: 91 | L116: 1++B | N116: =VLOOKUP(E116,[1]경매자료!A:O,15,0) -> 23,912 | O116: 13,008,128
A117: 224 | B117: 충남 | C117: 천안시 | D117: 곽태송 | E117: 002174875271 | F117: 917 | G117: 569 | H117: 112 | I117: 25 | J117: 58.79 | K117: 93 | L117: 1++C | N117: =VLOOKUP(E117,[1]경매자료!A:O,15,0) -> 22,342 | O117: 12,712,598
A118: 222 | B118: 충남 | C118: 천안시 | D118: 유인상 | E118: 002174862099 | F118: 982 | G118: 601 | H118: 122 | I118: 8 | J118: 62.69 | K118: 93 | L118: 1++A | N118: =VLOOKUP(E118,[1]경매자료!A:O,15,0) -> 26,750 | O118: 16,076,750
A119: 223 | B119: 충남 | C119: 천안시 | D119: 이영자 | E119: 002176006683 | F119: 852 | G119: 521 | H119: 113 | I119: 16 | J119: 61.19 | K119: 92 | L119: 1++B | N119: =VLOOKUP(E119,[1]경매자료!A:O,15,0) -> 23,759 | O119: 12,378,439
A120: 221 | B120: 충남 | C120: 천안시 | D120: 최한수 | E120: 002174870494 | F120: 819 | G120: 523 | H120: 132 | I120: 14 | J120: 62.68 | K120: 92 | L120: 1++A | N120: =VLOOKUP(E120,[1]경매자료!A:O,15,0) -> 25,990 | O120: 13,592,770
A121: 101 | B121: 충남 | C121: 홍성군 | D121: 김찬 | E121: 002176731273 | F121: 870 | G121: 542 | H121: 137 | I121: 13 | J121: 62.97 | K121: 92 | L121: 1++A | N121: =VLOOKUP(E121,[1]경매자료!A:O,15,0) -> 26,988 | O121: 14,627,496
A122: 98 | B122: 충남 | C122: 홍성군 | D122: 노윤자 | E122: 002176740049 | F122: 952 | G122: 575 | H122: 103 | I122: 13 | J122: 60.94 | K122: 91 | L122: 1++B | N122: =VLOOKUP(E122,[1]경매자료!A:O,15,0) -> 23,855 | O122: 13,716,625
A123: 97 | B123: 충남 | C123: 홍성군 | D123: 이용연 | E123: 002173775234 | F123: 827 | G123: 508 | H123: 116 | I123: 5 | J123: 64.18 | K123: 91 | L123: 1++A | N123: =VLOOKUP(E123,[1]경매자료!A:O,15,0) -> 24,899 | O123: 12,648,692
A124: 99 | B124: 충남 | C124: 홍성군 | D124: 하상부 | E124: 002177802169 | F124: 865 | G124: 545 | H124: 113 | I124: 11 | J124: 62.15 | K124: 93 | L124: 1++B | N124: =VLOOKUP(E124,[1]경매자료!A:O,15,0) -> 27,666 | O124: 15,077,970
A125: 22 | B125: 전북 | C125: 군산시 | D125: 김재환 | E125: 002173199799 | F125: 928 | G125: 586 | H125: 131 | I125: 15 | J125: 61.79 | K125: 93 | L125: 1++B | N125: =VLOOKUP(E125,[1]경매자료!A:O,15,0) -> 23,238 | O125: 13,617,468
A126: 23 | B126: 전북 | C126: 군산시 | D126: 정윤섭 | E126: 002173198247 | F126: 850 | G126: 506 | H126: 116 | I126: 10 | J126: 62.98 | K126: 62 | L126: 1+A | N126: =VLOOKUP(E126,[1]경매자료!A:O,15,0) -> 18,434 | O126: 9,327,604
A127: 24 | B127: 전북 | C127: 군산시 | D127: 최송규 | E127: 002175598077 | F127: 931 | G127: 573 | H127: 132 | I127: 10 | J127: 63.04 | K127: 92 | L127: 1++A | N127: =VLOOKUP(E127,[1]경매자료!A:O,15,0) -> 27,078 | O127: 15,515,694
A128: 237 | B128: 전북 | C128: 남원시 | D128: 하태성 | E128: 002174375415 | F128: 894 | G128: 553 | H128: 95 | I128: 18 | J128: 59.56 | K128: 62 | L128: 1+C | N128: =VLOOKUP(E128,[1]경매자료!A:O,15,0) -> 16,366 | O128: 9,050,398
A129: 53 | B129: 전북 | C129: 무주군 | D129: 이미자 | E129: 002179894657 | F129: 824 | G129: 523 | H129: 114 | I129: 8 | J129: 63.14 | K129: 93 | L129: 1++A | N129: =VLOOKUP(E129,[1]경매자료!A:O,15,0) -> 25,599 | O129: 13,388,277
A130: 104 | B130: 전북 | C130: 부안군 | D130: 김광수 | E130: 002177839084 | F130: 873 | G130: 531 | H130: 112 | I130: 10 | J130: 62.47 | K130: 93 | L130: 1++B | N130: =VLOOKUP(E130,[1]경매자료!A:O,15,0) -> 25,012 | O130: 13,281,372
A131: 9 | B131: 전북 | C131: 익산시 | D131: 서광명 | E131: 002175594137 | F131: 857 | G131: 533 | H131: 109 | I131: 7 | J131: 62.99 | K131: 92 | L131: 1++A | N131: =VLOOKUP(E131,[1]경매자료!A:O,15,0) -> 24,999 | O131: 13,324,467
A132: 1 | B132: 전북 | C132: 익산시 | D132: 신승일 | E132: 002173201813 | F132: 736 | G132: 484 | H132: 98 | I132: 11 | J132: 61.95 | K132: 93 | L132: 1++B | N132: =VLOOKUP(E132,[1]경매자료!A:O,15,0) -> 10,012 | O132: =G132*N132 -> 4,845,808
A133: 7 | B133: 전북 | C133: 익산시 | D133: 이존필 | E133: 002175945641 | F133: 754 | G133: 455 | H133: 117 | I133: 12 | J133: 63.18 | K133: 91 | L133: 1++A | N133: =VLOOKUP(E133,[1]경매자료!A:O,15,0) -> 23,615 | O133: 10,744,825
A134: 8 | B134: 전북 | C134: 익산시 | D134: 이현수 | E134: 002173599139 | F134: 847 | G134: 527 | H134: 99 | I134: 22 | J134: 58.97 | K134: 83 | L134: 1++C | N134: =VLOOKUP(E134,[1]경매자료!A:O,15,0) -> 18,877 | O134: 9,948,179
A135: 10 | B135: 전북 | C135: 익산시 | D135: 황인섭 | E135: 002170529727 | F135: 838 | G135: 533 | H135: 123 | I135: 13 | J135: 62.33 | K135: 93 | L135: 1++B | N135: =VLOOKUP(E135,[1]경매자료!A:O,15,0) -> 25,999 | O135: 13,857,467
A136: 127 | B136: 전북 | C136: 임실군 | D136: 안혜숙 | E136: 002174603649 | F136: 1026 | G136: 668 | H136: 129 | I136: 11 | J136: 61.84 | K136: 83 | L136: 1++B | N136: =VLOOKUP(E136,[1]경매자료!A:O,15,0) -> 20,039 | O136: 13,386,052
A137: 51 | B137: 전북 | C137: 장수군 | D137: 권용세 | E137: 002174387429 | F137: 977 | G137: 615 | H137: 142 | I137: 14 | J137: 62.26 | K137: 93 | L137: 1++B | N137: =VLOOKUP(E137,[1]경매자료!A:O,15,0) -> 26,630 | O137: 16,377,450
A138: 52 | B138: 전북 | C138: 장수군 | D138: 장수한우지방공사 | E138: 002178929905 | F138: 895 | G138: 539 | H138: 135 | I138: 14 | J138: 62.66 | K138: 93 | L138: 1++A | N138: =VLOOKUP(E138,[1]경매자료!A:O,15,0) -> 26,163 | O138: 14,101,857
A139: 50 | B139: 전북 | C139: 장수군 | D139: 장재영 | E139: 002175462665 | F139: 711 | G139: 439 | H139: 92 | I139: 3 | J139: 64.37 | K139: 64 | L139: 1+A | N139: =VLOOKUP(E139,[1]경매자료!A:O,15,0) -> 17,120 | O139: 7,515,680
A140: 124 | B140: 전북 | C140: 정읍시 | D140: 김남임 | E140: 002175518256 | F140: 786 | G140: 476 | H140: 131 | I140: 15 | J140: 62.94 | K140: 93 | L140: 1++A | N140: =VLOOKUP(E140,[1]경매자료!A:O,15,0) -> 28,229 | O140: 13,437,004
A141: 125 | B141: 전북 | C141: 정읍시 | D141: 박성훈 | E141: 002174207252 | F141: 1014 | G141: 625 | H141: 102 | I141: 15 | J141: 60.16 | K141: 71 | L141: 1++C | N141: =VLOOKUP(E141,[1]경매자료!A:O,15,0) -> 17,000 | O141: 10,625,000
A142: 122 | B142: 전북 | C142: 정읍시 | D142: 배석한 | E142: 002176930045 | F142: 736 | G142: 459 | H142: 141 | I142: 12 | J142: 64.61 | K142: 93 | L142: 1++A | N142: =VLOOKUP(E142,[1]경매자료!A:O,15,0) -> 31,270 | O142: 14,352,930
A143: 48 | B143: 전북 | C143: 정읍시 | D143: 유영훈 | E143: 002177280476 | F143: 787 | G143: 506 | H143: 94 | I143: 23 | J143: 58.53 | K143: 62 | L143: 1+C | N143: =VLOOKUP(E143,[1]경매자료!A:O,15,0) -> 16,958 | O143: 8,580,748
A144: 121 | B144: 전북 | C144: 정읍시 | D144: 유종대 | E144: 002167710899 | F144: 797 | G144: 483 | H144: 128 | I144: 20 | J144: 61.38 | K144: 93 | L144: 1++B | N144: =VLOOKUP(E144,[1]경매자료!A:O,15,0) -> 24,918 | O144: 12,035,394
A145: 126 | B145: 전북 | C145: 정읍시 | D145: 이강욱 | E145: 002174208229 | F145: 615 | G145: 367 | H145: 96 | I145: 3 | J145: 66.17 | K145: 71 | L145: 1++A | N145: =VLOOKUP(E145,[1]경매자료!A:O,15,0) -> 19,209 | O145: 7,049,703
A146: 25 | B146: 전북 | C146: 정읍시 | D146: 이경연 | E146: 002175518449 | F146: 833 | G146: 516 | H146: 131 | I146: 5 | J146: 64.89 | K146: 93 | L146: 1++A | N146: =VLOOKUP(E146,[1]경매자료!A:O,15,0) -> 28,234 | O146: 14,568,744
A147: 106 | B147: 전북 | C147: 정읍시 | D147: 정왕용 | E147: 002174211499 | F147: 892 | G147: 528 | H147: 119 | I147: 8 | J147: 63.35 | K147: 91 | L147: 1++A | N147: =VLOOKUP(E147,[1]경매자료!A:O,15,0) -> 24,899 | O147: 13,146,672
A148: 105 | B148: 전북 | C148: 정읍시 | D148: 정태운 | E148: 002167701890 | F148: 1009 | G148: 614 | H148: 85 | I148: 5 | J148: 61.48 | K148: 52 | L148: 1B | N148: =VLOOKUP(E148,[1]경매자료!A:O,15,0) -> 15,050 | O148: 9,240,700
A149: 102 | B149: 전북 | C149: 정읍시 | D149: 최규빈 | E149: 002178371678 | F149: 922 | G149: 568 | H149: 147 | I149: 15 | J149: 62.74 | K149: 93 | L149: 1++A | N149: =VLOOKUP(E149,[1]경매자료!A:O,15,0) -> 33,699 | O149: 19,141,032
A150: 123 | B150: 전북 | C150: 정읍시 | D150: 최정숙 | E150: 002178374252 | F150: 903 | G150: 562 | H150: 128 | I150: 17 | J150: 61.4 | K150: 93 | L150: 1++B | N150: =VLOOKUP(E150,[1]경매자료!A:O,15,0) -> 26,918 | O150: 15,127,916
A151: 103 | B151: 전북 | C151: 정읍시 | D151: 홍순경 | E151: 002174204395 | F151: 1024 | G151: 674 | H151: 117 | I151: 14 | J151: 60.73 | K151: 71 | L151: 1++B | N151: =VLOOKUP(E151,[1]경매자료!A:O,15,0) -> 18,259 | O151: 12,306,566
A152: 54 | B152: 전북 | C152: 진안군 | D152: 성희수 | E152: 002174383642 | F152: 984 | G152: 573 | H152: 104 | I152: 8 | J152: 62.09 | K152: 71 | L152: 1++B | N152: =VLOOKUP(E152,[1]경매자료!A:O,15,0) -> 18,709 | O152: 10,720,257
A153: 2 | B153: 전남 | C153: 강진군 | D153: 한명숙 | E153: 002176152678 | F153: 819 | G153: 525 | H153: 117 | I153: 14 | J153: 61.85 | K153: 93 | L153: 1++B | N153: =VLOOKUP(E153,[1]경매자료!A:O,15,0) -> 25,555 | O153: 13,416,375
A154: 162 | B154: 전남 | C154: 고흥군 | D154: 고흥축협 | E154: 002172602596 | F154: 766 | G154: 465 | H154: 107 | I154: 11 | J154: 62.71 | K154: 32 | L154: 2A | N154: =VLOOKUP(E154,[1]경매자료!A:O,15,0) -> 12,409 | O154: 5,770,185
A155: 163 | B155: 전남 | C155: 고흥군 | D155: 박명호 | E155: 002175715397 | F155: 854 | G155: 525 | H155: 115 | I155: 13 | J155: 61.98 | K155: 63 | L155: 1+B | N155: =VLOOKUP(E155,[1]경매자료!A:O,15,0) -> 17,999 | O155: 9,449,475
A156: 160 | B156: 전남 | C156: 고흥군 | D156: 박미영 | E156: 002179357417 | F156: 877 | G156: 574 | H156: 150 | I156: 20 | J156: 61.74 | K156: 93 | L156: 1++B | N156: =VLOOKUP(E156,[1]경매자료!A:O,15,0) -> 27,899 | O156: 16,014,026
A157: 165 | B157: 전남 | C157: 고흥군 | D157: 박태화 | E157: 002175713258 | F157: 986 | G157: 625 | H157: 154 | I157: 15 | J157: 62.51 | K157: 93 | L157: 1++B | N157: =VLOOKUP(E157,[1]경매자료!A:O,15,0) -> 33,145 | O157: 20,715,625
A158: 164 | B158: 전남 | C158: 고흥군 | D158: 신영수 | E158: 002178891874 | F158: 765 | G158: 461 | H158: 111 | I158: 10 | J158: 63.27 | K158: 43 | L158: 1A | N158: =VLOOKUP(E158,[1]경매자료!A:O,15,0) -> 16,333 | O158: 7,529,513
A159: 161 | B159: 전남 | C159: 고흥군 | D159: 장철운 | E159: 002175711117 | F159: 845 | G159: 514 | H159: 103 | I159: 22 | J159: 59.24 | K159: 22 | L159: 2C | N159: =VLOOKUP(E159,[1]경매자료!A:O,15,0) -> 13,099 | O159: 6,732,886
A160: 62 | B160: 전남 | C160: 곡성군 | D160: 박희애 | E160: 002173307431 | F160: 826 | G160: 532 | H160: 125 | I160: 10 | J160: 63.15 | K160: 93 | L160: 1++A | N160: =VLOOKUP(E160,[1]경매자료!A:O,15,0) -> 22,789 | O160: 12,123,748
A161: 43 | B161: 전남 | C161: 나주시 | D161: 정종안 | E161: 002177872437 | F161: 980 | G161: 644 | H161: 143 | I161: 18 | J161: 61.28 | K161: 93 | L161: 1++B | N161: =VLOOKUP(E161,[1]경매자료!A:O,15,0) -> 27,070 | O161: 17,433,080
A162: 58 | B162: 전남 | C162: 담양군 | D162: 강대열 | E162: 002173343308 | F162: 851 | G162: 525 | H162: 100 | I162: 21 | J162: 59.27 | K162: 83 | L162: 1++C | N162: =VLOOKUP(E162,[1]경매자료!A:O,15,0) -> 18,699 | O162: 9,816,975
A163: 59 | B163: 전남 | C163: 담양군 | D163: 윤창호 | E163: 002175229138 | F163: 937 | G163: 585 | H163: 114 | I163: 10 | J163: 62.04 | K163: 71 | L163: 1++B | N163: =VLOOKUP(E163,[1]경매자료!A:O,15,0) -> 19,152 | O163: 11,203,920
A164: 74 | B164: 전남 | C164: 무안군 | D164: 김원길 | E164: 002172204287 | F164: 861 | G164: 550 | H164: 107 | I164: 10 | J164: 62.02 | K164: 64 | L164: 1+B | N164: =VLOOKUP(E164,[1]경매자료!A:O,15,0) -> 17,599 | O164: 9,679,450
A165: 69 | B165: 전남 | C165: 무안군 | D165: 박성순 | E165: 002171353029 | F165: 909 | G165: 564 | H165: 120 | I165: 19 | J165: 60.54 | K165: 93 | L165: 1++B | N165: =VLOOKUP(E165,[1]경매자료!A:O,15,0) -> 29,350 | O165: 16,553,400
A166: 21 | B166: 전남 | C166: 무안군 | D166: 박운일 | E166: 002172205785 | F166: 949 | G166: 594 | H166: 121 | I166: 6 | J166: 63.14 | K166: 41 | L166: 1A | N166: =VLOOKUP(E166,[1]경매자료!A:O,15,0) -> 17,780 | O166: 10,561,320
A167: 20 | B167: 전남 | C167: 무안군 | D167: 서찬열 | E167: 002171348737 | F167: 971 | G167: 602 | H167: 138 | I167: 10 | J167: 63.02 | K167: 93 | L167: 1++A | N167: =VLOOKUP(E167,[1]경매자료!A:O,15,0) -> 25,332 | O167: 15,249,864
A168: 73 | B168: 전남 | C168: 무안군 | D168: 손현균 | E168: 002171340005 | F168: 917 | G168: 595 | H168: 114 | I168: 14 | J168: 61.11 | K168: 82 | L168: 1++B | N168: =VLOOKUP(E168,[1]경매자료!A:O,15,0) -> 19,525 | O168: 11,617,375
A169: 72 | B169: 전남 | C169: 무안군 | D169: 임종오 | E169: 002176545128 | F169: 804 | G169: 522 | H169: 126 | I169: 10 | J169: 63.33 | K169: 93 | L169: 1++A | N169: =VLOOKUP(E169,[1]경매자료!A:O,15,0) -> 25,556 | O169: 13,340,232
A170: 70 | B170: 전남 | C170: 무안군 | D170: 장영준 | E170: 002176543882 | F170: 876 | G170: 543 | H170: 115 | I170: 6 | J170: 63.42 | K170: 42 | L170: 1A | N170: =VLOOKUP(E170,[1]경매자료!A:O,15,0) -> 17,786 | O170: 9,657,798
A171: 49 | B171: 전남 | C171: 무안군 | D171: 최권주 | E171: 002172052932 | F171: 875 | G171: 568 | H171: 124 | I171: 19 | J171: 60.71 | K171: 93 | L171: 1++B | N171: =VLOOKUP(E171,[1]경매자료!A:O,15,0) -> 27,249 | O171: 15,477,432
A172: 107 | B172: 전남 | C172: 보성군 | D172: 임병량 | E172: 002169247087 | F172: 965 | G172: 598 | H172: 134 | I172: 14 | J172: 62.04 | K172: 91 | L172: 1++B | N172: =VLOOKUP(E172,[1]경매자료!A:O,15,0) -> 24,333 | O172: 14,551,134
A173: 71 | B173: 전남 | C173: 신안군 | D173: 윤성숙 | E173: 002180999462 | F173: 952 | G173: 612 | H173: 132 | I173: 10 | J173: 62.64 | K173: 93 | L173: 1++A | N173: =VLOOKUP(E173,[1]경매자료!A:O,15,0) -> 28,009 | O173: 17,141,508
A174: 40 | B174: 전남 | C174: 영암군 | D174: 김대욱 | E174: 002178759532 | F174: 871 | G174: 549 | H174: 141 | I174: 13 | J174: 63.09 | K174: 93 | L174: 1++A | N174: =VLOOKUP(E174,[1]경매자료!A:O,15,0) -> 31,633 | O174: 17,366,517
A175: 38 | B175: 전남 | C175: 영암군 | D175: 김성도 | E175: 002175319666 | F175: 957 | G175: 594 | H175: 122 | I175: 12 | J175: 61.92 | K175: 82 | L175: 1++B | N175: =VLOOKUP(E175,[1]경매자료!A:O,15,0) -> 22,360 | O175: 13,281,840
A176: 41 | B176: 전남 | C176: 영암군 | D176: 김용복 | E176: 002177989883 | F176: 800 | G176: 490 | H176: 129 | I176: 11 | J176: 63.67 | K176: 92 | L176: 1++A | N176: =VLOOKUP(E176,[1]경매자료!A:O,15,0) -> 23,897 | O176: 11,709,530
A177: 33 | B177: 전남 | C177: 영암군 | D177: 김용우 | E177: 002176705147 | F177: 866 | G177: 527 | H177: 118 | I177: 8 | J177: 63.31 | K177: 91 | L177: 1++A | N177: =VLOOKUP(E177,[1]경매자료!A:O,15,0) -> 25,000 | O177: 13,175,000
A178: 36 | B178: 전남 | C178: 영암군 | D178: 김정자 | E178: 002176969790 | F178: 853 | G178: 530 | H178: 129 | I178: 10 | J178: 63.39 | K178: 93 | L178: 1++A | N178: =VLOOKUP(E178,[1]경매자료!A:O,15,0) -> 26,333 | O178: 13,956,490
A179: 37 | B179: 전남 | C179: 영암군 | D179: 문미숙 | E179: 002178754180 | F179: 698 | G179: 419 | H179: 95 | I179: 6 | J179: 64.04 | K179: 64 | L179: 1+A | N179: =VLOOKUP(E179,[1]경매자료!A:O,15,0) -> 18,114 | O179: 7,589,766
A180: 31 | B180: 전남 | C180: 영암군 | D180: 서승민 | E180: 002174107714 | F180: 989 | G180: 611 | H180: 153 | I180: 11 | J180: 63.42 | K180: 93 | L180: 1++A | N180: =VLOOKUP(E180,[1]경매자료!A:O,15,0) -> 28,932 | O180: 17,677,452
A181: 35 | B181: 전남 | C181: 영암군 | D181: 서영봉 | E181: 002176973690 | F181: 819 | G181: 519 | H181: 105 | I181: 12 | J181: 61.74 | K181: 62 | L181: 1+B | N181: =VLOOKUP(E181,[1]경매자료!A:O,15,0) -> 17,817 | O181: 9,247,023
A182: 45 | B182: 전남 | C182: 영암군 | D182: 신북한우영농조합법인(임정균) | E182: 002175319109 | F182: 906 | G182: 591 | H182: 131 | I182: 19 | J182: 60.9 | K182: 83 | L182: 1++B | N182: =VLOOKUP(E182,[1]경매자료!A:O,15,0) -> 21,225 | O182: 12,543,975
A183: 39 | B183: 전남 | C183: 영암군 | D183: 안상길 | E183: 002176973761 | F183: 765 | G183: 455 | H183: 103 | I183: 5 | J183: 64.24 | K183: 72 | L183: 1++A | N183: =VLOOKUP(E183,[1]경매자료!A:O,15,0) -> 18,999 | O183: 8,644,545
A184: 44 | B184: 전남 | C184: 영암군 | D184: 이재성 | E184: 002175318114 | F184: 1026 | G184: 646 | H184: 147 | I184: 11 | J184: 62.8 | K184: 82 | L184: 1++A | N184: =VLOOKUP(E184,[1]경매자료!A:O,15,0) -> 20,599 | O184: 13,306,954
A185: 32 | B185: 전남 | C185: 영암군 | D185: 이재우 | E185: 002177990102 | F185: 989 | G185: 596 | H185: 123 | I185: 14 | J185: 61.53 | K185: 62 | L185: 1+B | N185: =VLOOKUP(E185,[1]경매자료!A:O,15,0) -> 18,019 | O185: 10,739,324
A186: 34 | B186: 전남 | C186: 영암군 | D186: 이재중 | E186: 002180007484 | F186: 759 | G186: 481 | H186: 98 | I186: 10 | J186: 62.24 | K186: 72 | L186: 1++B | N186: =VLOOKUP(E186,[1]경매자료!A:O,15,0) -> 18,699 | O186: 8,994,219
A187: 64 | B187: 전남 | C187: 함평군 | D187: 김성진 | E187: 002175137740 | F187: 840 | G187: 548 | H187: 118 | I187: 22 | J187: 59.86 | K187: 93 | L187: 1++C | N187: =VLOOKUP(E187,[1]경매자료!A:O,15,0) -> 25,233 | O187: 13,827,684
A188: 65 | B188: 전남 | C188: 함평군 | D188: 나형규 | E188: 002175140831 | F188: 912 | G188: 593 | H188: 132 | I188: 22 | J188: 60.3 | K188: 93 | L188: 1++C | N188: =VLOOKUP(E188,[1]경매자료!A:O,15,0) -> 26,830 | O188: 15,910,190
A189: 63 | B189: 전남 | C189: 함평군 | D189: 신영철 | E189: 002178086341 | F189: 909 | G189: 553 | H189: 129 | I189: 12 | J189: 62.66 | K189: 64 | L189: 1+A | N189: =VLOOKUP(E189,[1]경매자료!A:O,15,0) -> 18,711 | O189: 10,347,183
A190: 67 | B190: 전남 | C190: 함평군 | D190: 안성호 | E190: 002176849047 | F190: 863 | G190: 550 | H190: 120 | I190: 15 | J190: 61.55 | K190: 83 | L190: 1++B | N190: =VLOOKUP(E190,[1]경매자료!A:O,15,0) -> 19,074 | O190: 10,490,700
A191: 47 | B191: 전남 | C191: 함평군 | D191: 윤연옥 | E191: 002178090855 | F191: 847 | G191: 534 | H191: 130 | I191: 21 | J191: 60.81 | K191: 71 | L191: 1++B | N191: =VLOOKUP(E191,[1]경매자료!A:O,15,0) -> 18,948 | O191: 10,118,232
A192: 66 | B192: 전남 | C192: 함평군 | D192: 전갑석 | E192: 002176844376 | F192: 815 | G192: 511 | H192: 118 | I192: 10 | J192: 63.03 | K192: 92 | L192: 1++A | N192: =VLOOKUP(E192,[1]경매자료!A:O,15,0) -> 24,823 | O192: 12,684,553
A193: 154 | B193: 전남 | C193: 화순군 | D193: 권기민 | E193: 002174732924 | F193: 830 | G193: 498 | H193: 110 | I193: 12 | J193: 62.23 | K193: 65 | L193: 1+B | N193: =VLOOKUP(E193,[1]경매자료!A:O,15,0) -> 17,699 | O193: 8,814,102
A194: 157 | B194: 전남 | C194: 화순군 | D194: 김공순 | E194: 002174732908 | F194: 801 | G194: 518 | H194: 105 | I194: 21 | J194: 59.57 | K194: 65 | L194: 1+C | N194: =VLOOKUP(E194,[1]경매자료!A:O,15,0) -> 16,999 | O194: 8,805,482
A195: 152 | B195: 전남 | C195: 화순군 | D195: 김성원 | E195: 002176410453 | F195: 741 | G195: 431 | H195: 108 | I195: 11 | J195: 63.24 | K195: 93 | L195: 1++A | N195: =VLOOKUP(E195,[1]경매자료!A:O,15,0) -> 23,988 | O195: 10,338,828
A196: 156 | B196: 전남 | C196: 화순군 | D196: 김성철 | E196: 002174732730 | F196: 680 | G196: 406 | H196: 105 | I196: 19 | J196: 60.96 | K196: 91 | L196: 1++B | N196: =VLOOKUP(E196,[1]경매자료!A:O,15,0) -> 23,499 | O196: =G196*N196 -> 9,540,594
A197: 158 | B197: 전남 | C197: 화순군 | D197: 김성환 | E197: 002176410488 | F197: 740 | G197: 427 | H197: 110 | I197: 10 | J197: 63.72 | K197: 64 | L197: 1+A | N197: =VLOOKUP(E197,[1]경매자료!A:O,15,0) -> 18,339 | O197: 7,830,753
A198: 159 | B198: 전남 | C198: 화순군 | D198: 김정란 | E198: 002173268819 | F198: 821 | G198: 505 | H198: 112 | I198: 8 | J198: 63.26 | K198: 71 | L198: 1++A | N198: =VLOOKUP(E198,[1]경매자료!A:O,15,0) -> 18,599 | O198: 9,392,495
A199: 155 | B199: 전남 | C199: 화순군 | D199: 박준희 | E199: 002167233774 | F199: 918 | G199: 579 | H199: 121 | I199: 24 | J199: 59.41 | K199: 72 | L199: 1++C | N199: =VLOOKUP(E199,[1]경매자료!A:O,15,0) -> 17,659 | O199: 10,224,561
A200: 46 | B200: 전남 | C200: 화순군 | D200: 은백축산 | E200: 002177513628 | F200: 740 | G200: 434 | H200: 88 | I200: 18 | J200: 59.87 | K200: 52 | L200: 1C | N200: =VLOOKUP(E200,[1]경매자료!A:O,15,0) -> 15,859 | O200: 6,882,806
... 67 more rows
